[Event "*** Qualifier 2: Titled Tuesday 3|2 Blitz"]
[Site "Chess.com"]
[Date "2017.04.11"]
[Round "1"]
[White "tigra"]
[Black "pedromartinez91"]
[Result "1-0"]
[WhiteElo "2610"]
[BlackElo "2309"]
[TimeControl "180+2"]
[EndTime "13:10:23 PDT"]
[Termination "tigra won by resignation"]

1. e4 {[%clk 0:01:25.3]} 1... e6 {[%clk 0:02:59.8]} 2. d4 {[%clk 0:01:25.2]}
2... d5 {[%clk 0:03:00.7]} 3. Nc3 {[%clk 0:01:26.8]} 3... Nf6 {[%clk 0:03:01.4]}
4. e5 {[%clk 0:01:28]} 4... Ne4 {[%clk 0:03:02.7]} 5. Nxe4 {[%clk 0:01:28.2]}
5... dxe4 {[%clk 0:03:03.4]} 6. c3 {[%clk 0:01:30.1]} 6... c5 {[%clk 0:03:03.8]}
7. Be3 {[%clk 0:01:31.3]} 7... cxd4 {[%clk 0:03:01.5]} 8. Bxd4 {[%clk
0:01:33.2]} 8... Nc6 {[%clk 0:03:02.1]} 9. Ne2 {[%clk 0:01:35]} 9... Nxd4 {[%clk
0:02:57.9]} 10. Nxd4 {[%clk 0:01:36.9]} 10... Bc5 {[%clk 0:02:47.7]} 11. Qc2
{[%clk 0:01:32.9]} 11... Bxd4 {[%clk 0:02:45.1]} 12. Qa4+ {[%clk 0:01:34.1]}
12... Bd7 {[%clk 0:02:43.9]} 13. Qxd4 {[%clk 0:01:35]} 13... Bc6 {[%clk
0:02:45]} 14. O-O-O {[%clk 0:01:36.3]} 14... Qxd4 {[%clk 0:02:40.9]} 15. Rxd4
{[%clk 0:01:36.9]} 15... Ke7 {[%clk 0:02:42.4]} 16. Kd2 {[%clk 0:01:36.6]} 16...
Rhd8 {[%clk 0:02:42.2]} 17. Ke3 {[%clk 0:01:37.3]} 17... Rxd4 {[%clk 0:02:42.1]}
18. cxd4 {[%clk 0:01:38]} 18... Bd5 {[%clk 0:02:42.6]} 19. b3 {[%clk 0:01:35.4]}
19... Rc8 {[%clk 0:02:41.5]} 20. Kd2 {[%clk 0:01:36.6]} 20... f6 {[%clk
0:02:28.4]} 21. exf6+ {[%clk 0:01:36.5]} 21... gxf6 {[%clk 0:02:28.8]} 22. Rg1
{[%clk 0:01:38.2]} 22... f5 {[%clk 0:02:27.6]} 23. Be2 {[%clk 0:01:33.5]} 23...
e5 {[%clk 0:02:23.3]} 24. dxe5 {[%clk 0:01:33.8]} 24... Ke6 {[%clk 0:02:24.4]}
25. f4 {[%clk 0:01:34.8]} 25... exf3 {[%clk 0:02:23.9]} 26. gxf3 {[%clk
0:01:36.7]} 26... Kxe5 {[%clk 0:02:23.3]} 27. Rg7 {[%clk 0:01:38.2]} 27... Rd8
{[%clk 0:02:17.6]} 28. Ke3 {[%clk 0:01:35]} 28... f4+ {[%clk 0:02:11.9]} 29. Kf2
{[%clk 0:01:36.1]} 29... h6 {[%clk 0:02:09.4]} 30. h4 {[%clk 0:01:28.9]} 30...
Rd6 {[%clk 0:02:09.3]} 31. Re7+ {[%clk 0:01:27.4]} 31... Re6 {[%clk 0:02:07.2]}
32. Rc7 {[%clk 0:01:27.7]} 32... Kd6 {[%clk 0:01:50.4]} 33. Rh7 {[%clk
0:01:28.2]} 33... Kc5 {[%clk 0:01:40]} 34. Bf1 {[%clk 0:01:19.2]} 34... Rf6
{[%clk 0:01:32]} 35. Rd7 {[%clk 0:01:16.2]} 35... Bc6 {[%clk 0:01:30.2]} 36. Rh7
{[%clk 0:01:09.8]} 36... a5 {[%clk 0:01:29.6]} 37. h5 {[%clk 0:01:10.8]} 37...
Kb4 {[%clk 0:01:28.3]} 38. Bd3 {[%clk 0:01:11.6]} 38... Ka3 {[%clk 0:01:18]} 39.
Bg6 {[%clk 0:01:10.6]} 39... Kxa2 {[%clk 0:01:18.4]} 40. Rxh6 {[%clk 0:01:11.9]}
40... Rf8 {[%clk 0:01:09.6]} 41. Bc2 {[%clk 0:01:03.3]} 41... Kb2 {[%clk
0:01:07.9]} 42. Bd1 {[%clk 0:01:04.5]} 42... Be8 {[%clk 0:01:07.8]} 43. Rh7
{[%clk 0:01:02.5]} 43... b5 {[%clk 0:01:05.9]} 44. h6 {[%clk 0:01:02.2]} 44...
a4 {[%clk 0:01:06]} 45. bxa4 {[%clk 0:01:02.4]} 45... bxa4 {[%clk 0:01:06.8]}
46. Rg7 {[%clk 0:00:58.9]} 46... a3 {[%clk 0:01:05]} 47. Rb7+ {[%clk 0:00:59.5]}
47... Kc1 {[%clk 0:01:00.6]} 48. Bb3 {[%clk 0:00:59.8]} 48... Bc6 {[%clk
0:00:43.2]} 49. Rb6 {[%clk 0:00:56.1]} 49... Ba4 {[%clk 0:00:40.7]} 50. Bxa4
{[%clk 0:00:45]} 50... a2 {[%clk 0:00:40.8]} 51. Rc6+ {[%clk 0:00:42.3]} 51...
Kb1 {[%clk 0:00:29.4]} 52. Rb6+ {[%clk 0:00:36.7]} 52... Kc1 {[%clk 0:00:29.5]}
53. Rd6 {[%clk 0:00:35.2]} 53... a1=Q {[%clk 0:00:16.6]} 54. Rd1+ {[%clk
0:00:35.4]} 54... Kb2 {[%clk 0:00:18]} 55. Rxa1 {[%clk 0:00:37.3]} 55... Kxa1
{[%clk 0:00:19.5]} 56. Bc2 {[%clk 0:00:37.4]} 56... Kb2 {[%clk 0:00:20.8]} 57.
Be4 {[%clk 0:00:37.2]} 57... Kc3 {[%clk 0:00:22.1]} 58. Kg2 {[%clk 0:00:38.8]}
58... Kd4 {[%clk 0:00:23.4]} 59. Kh3 {[%clk 0:00:40.4]} 59... Ke3 {[%clk
0:00:23.9]} 60. Kg4 {[%clk 0:00:41.7]} 60... Rf6 {[%clk 0:00:23.9]} 61. Kg5
{[%clk 0:00:42.7]} 61... Re6 {[%clk 0:00:23.3]} 62. h7 {[%clk 0:00:43.8]} 62...
Re8 {[%clk 0:00:21.4]} 63. Kg6 {[%clk 0:00:44.6]} 63... Rc8 {[%clk 0:00:20.1]}
64. Bd5 {[%clk 0:00:45.7]} 64... Rd8 {[%clk 0:00:12.4]} 65. Bg8 {[%clk
0:00:45.7]} 65... Kxf3 {[%clk 0:00:12.3]} 66. h8=Q {[%clk 0:00:45.7]} 1-0

[Event "*** Qualifier 2: Titled Tuesday 3|2 Blitz"]
[Site "Chess.com"]
[Date "2017.04.11"]
[Round "1"]
[White "FairChess_on_YouTube"]
[Black "TheNextLevelFan"]
[Result "1-0"]
[WhiteElo "2715"]
[BlackElo "2379"]
[TimeControl "180+2"]
[EndTime "13:10:44 PDT"]
[Termination "FairChess_on_YouTube won by resignation"]

1. Nf3 {[%clk 0:02:59.2]} 1... Nf6 {[%clk 0:03:00.2]} 2. c4 {[%clk 0:02:59.5]}
2... e6 {[%clk 0:03:01]} 3. g3 {[%clk 0:02:58.7]} 3... d5 {[%clk 0:03:01.8]} 4.
Bg2 {[%clk 0:02:59]} 4... Be7 {[%clk 0:03:03]} 5. O-O {[%clk 0:02:59.1]} 5...
O-O {[%clk 0:03:04]} 6. d4 {[%clk 0:03:00.1]} 6... dxc4 {[%clk 0:03:04.8]} 7.
Qc2 {[%clk 0:02:59]} 7... a6 {[%clk 0:03:05.7]} 8. a4 {[%clk 0:02:59.1]} 8...
Bd7 {[%clk 0:02:50.1]} 9. Qxc4 {[%clk 0:02:57.6]} 9... Bc6 {[%clk 0:02:49.8]}
10. Rd1 {[%clk 0:02:57]} 10... Nbd7 {[%clk 0:02:47]} 11. Nc3 {[%clk 0:02:55.8]}
11... Nb6 {[%clk 0:02:05.9]} 12. Qd3 {[%clk 0:02:54.2]} 12... Bb4 {[%clk
0:02:06.8]} 13. a5 {[%clk 0:02:42.2]} 13... Nbd5 {[%clk 0:02:07.2]} 14. Ne5
{[%clk 0:02:41.5]} 14... Bd7 {[%clk 0:01:41.4]} 15. Bg5 {[%clk 0:02:37.1]} 15...
Be7 {[%clk 0:00:57]} 16. Bxf6 {[%clk 0:02:21.1]} 16... Bxf6 {[%clk 0:00:37.9]}
17. Bxd5 {[%clk 0:02:20.8]} 17... exd5 {[%clk 0:00:37.6]} 18. Nxd5 {[%clk
0:02:21.4]} 18... Bxe5 {[%clk 0:00:31.1]} 19. dxe5 {[%clk 0:02:21.6]} 19... Be6
{[%clk 0:00:27.6]} 20. Qf3 {[%clk 0:02:21.8]} 20... Bxd5 {[%clk 0:00:25.7]} 21.
Rxd5 {[%clk 0:02:22.4]} 21... Qe7 {[%clk 0:00:26.8]} 22. Rad1 {[%clk 0:02:21.1]}
22... c6 {[%clk 0:00:24.8]} 23. Rd7 {[%clk 0:02:20.8]} 23... Qxe5 {[%clk
0:00:25.9]} 24. Rxb7 {[%clk 0:02:21.7]} 24... Qxa5 {[%clk 0:00:26.9]} 25. Qxc6
{[%clk 0:02:22.3]} 25... Rac8 {[%clk 0:00:23.2]} 26. Qd6 {[%clk 0:02:12.7]}
26... h6 {[%clk 0:00:18.5]} 27. Qd2 {[%clk 0:01:53.1]} 27... Qe5 {[%clk
0:00:14.5]} 28. e3 {[%clk 0:01:49.8]} 28... a5 {[%clk 0:00:12.4]} 29. Qd4 {[%clk
0:01:40.7]} 29... Rc5 {[%clk 0:00:13.2]} 30. Qxe5 {[%clk 0:01:32.4]} 30... Rxe5
{[%clk 0:00:15.1]} 31. Rdd7 {[%clk 0:01:33.6]} 31... Rf5 {[%clk 0:00:16.4]} 32.
g4 {[%clk 0:01:33.2]} 32... Rg5 {[%clk 0:00:15.3]} 33. f3 {[%clk 0:01:29.5]}
33... h5 {[%clk 0:00:16.4]} 34. h4 {[%clk 0:01:29.4]} 34... Re5 {[%clk
0:00:16.8]} 35. Kf2 {[%clk 0:01:24.6]} 35... hxg4 {[%clk 0:00:17.3]} 36. fxg4
{[%clk 0:01:26.5]} 36... g6 {[%clk 0:00:17.8]} 37. Kf3 {[%clk 0:01:24.1]} 37...
Kg7 {[%clk 0:00:18.4]} 38. e4 {[%clk 0:01:25.1]} 38... Re6 {[%clk 0:00:18.7]}
39. g5 {[%clk 0:01:25.5]} 39... Kg8 {[%clk 0:00:18.4]} 40. b3 {[%clk 0:01:14.2]}
40... Re5 {[%clk 0:00:19.4]} 41. Rd5 {[%clk 0:01:12.9]} 41... Rfe8 {[%clk
0:00:20.7]} 42. Rxe5 {[%clk 0:01:12.9]} 42... Rxe5 {[%clk 0:00:21.2]} 43. Ke3
{[%clk 0:01:11.3]} 43... Rc5 {[%clk 0:00:20.2]} 44. Kd4 {[%clk 0:01:11.8]} 44...
Rc2 {[%clk 0:00:20.4]} 45. Rb5 {[%clk 0:01:11]} 45... Ra2 {[%clk 0:00:19.3]} 46.
Rb8+ {[%clk 0:01:01.2]} 46... Kg7 {[%clk 0:00:20.5]} 47. Ra8 {[%clk 0:01:02.8]}
47... Rb2 {[%clk 0:00:20.8]} 48. Kc3 {[%clk 0:01:02.5]} 48... Re2 {[%clk
0:00:21.9]} 49. Rxa5 {[%clk 0:01:02.9]} 49... Rxe4 {[%clk 0:00:23]} 50. Ra4
{[%clk 0:01:04.2]} 50... Re3+ {[%clk 0:00:22.5]} 51. Kb2 {[%clk 0:00:59]} 51...
f5 {[%clk 0:00:22.7]} 52. gxf6+ {[%clk 0:00:59]} 52... Kxf6 {[%clk 0:00:23.4]}
53. Rc4 {[%clk 0:01:00.6]} 53... Ke5 {[%clk 0:00:22.9]} 54. Ka3 {[%clk
0:01:01.7]} 54... Kd5 {[%clk 0:00:24]} 55. Rg4 {[%clk 0:01:02.4]} 55... Re6
{[%clk 0:00:24.5]} 56. Ka4 {[%clk 0:01:01.5]} 56... Kc6 {[%clk 0:00:25.5]} 57.
Ka5 {[%clk 0:01:00.8]} 57... Kb7 {[%clk 0:00:26.5]} 58. b4 {[%clk 0:01:00.4]}
58... Re5+ {[%clk 0:00:26.9]} 59. b5 {[%clk 0:01:01.2]} 59... Rh5 {[%clk
0:00:27.6]} 60. Re4 {[%clk 0:00:58.9]} 60... g5 {[%clk 0:00:24]} 61. Re7+ {[%clk
0:00:58.2]} 61... Kc8 {[%clk 0:00:25]} 62. hxg5 {[%clk 0:00:52.2]} 62... Rxg5
{[%clk 0:00:25.2]} 63. Ka6 {[%clk 0:00:53.8]} 63... Rg1 {[%clk 0:00:11.1]} 64.
Re8+ {[%clk 0:00:54.8]} 64... Kd7 {[%clk 0:00:10.7]} 65. Rh8 {[%clk 0:00:55.4]}
65... Kc7 {[%clk 0:00:10.3]} 66. b6+ {[%clk 0:00:55.7]} 66... Kc6 {[%clk
0:00:11.3]} 67. Rc8+ {[%clk 0:00:55.9]} 67... Kd7 {[%clk 0:00:12.5]} 68. Rc7+
{[%clk 0:00:56.9]} 68... Kd8 {[%clk 0:00:12.2]} 69. Kb7 {[%clk 0:00:57.7]} 69...
Rb1 {[%clk 0:00:12.3]} 70. Rc2 {[%clk 0:00:58.5]} 70... Ra1 {[%clk 0:00:11.8]}
71. Rd2+ {[%clk 0:00:59.3]} 71... Ke7 {[%clk 0:00:12.7]} 72. Kc7 {[%clk
0:01:00.5]} 72... Rc1+ {[%clk 0:00:13.3]} 73. Kb8 {[%clk 0:01:01.7]} 73... Rb1
{[%clk 0:00:13.9]} 74. b7 {[%clk 0:01:02.7]} 74... Ke8 {[%clk 0:00:14.5]} 75.
Rd5 {[%clk 0:01:03.2]} 75... Ke7 {[%clk 0:00:15.5]} 76. Kc7 {[%clk 0:01:03.4]}
76... Rc1+ {[%clk 0:00:16]} 77. Kb6 {[%clk 0:01:04.1]} 77... Rb1+ {[%clk
0:00:17]} 78. Rb5 {[%clk 0:01:05.2]} 1-0

[Event "*** Qualifier 2: Titled Tuesday 3|2 Blitz"]
[Site "Chess.com"]
[Date "2017.04.11"]
[Round "1"]
[White "Marcus_Harvey"]
[Black "rpragchess"]
[Result "1-0"]
[WhiteElo "2497"]
[BlackElo "2176"]
[TimeControl "180+2"]
[EndTime "13:10:44 PDT"]
[Termination "Marcus_Harvey won by resignation"]

1. Nf3 {[%clk 0:03:00.9]} 1... f6 {[%clk 0:03:00.1]} 2. d4 {[%clk 0:03:01]} 2...
g6 {[%clk 0:02:57.7]} 3. e4 {[%clk 0:03:01.4]} 3... Bg7 {[%clk 0:02:58.6]} 4. c4
{[%clk 0:03:00.4]} 4... e6 {[%clk 0:02:59.5]} 5. Nc3 {[%clk 0:03:01.6]} 5... Ne7
{[%clk 0:02:59.1]} 6. Be2 {[%clk 0:03:02.6]} 6... O-O {[%clk 0:03:00.1]} 7. O-O
{[%clk 0:03:03.2]} 7... Kh8 {[%clk 0:03:01.1]} 8. Re1 {[%clk 0:03:02.2]} 8... d5
{[%clk 0:03:01.9]} 9. cxd5 {[%clk 0:03:02.6]} 9... exd5 {[%clk 0:03:03.3]} 10.
e5 {[%clk 0:03:04.1]} 10... Bg4 {[%clk 0:02:56.6]} 11. exf6 {[%clk 0:03:03.3]}
11... Bxf6 {[%clk 0:02:55]} 12. Bh6 {[%clk 0:03:04.2]} 12... Bg7 {[%clk
0:02:55.9]} 13. Bxg7+ {[%clk 0:03:04.4]} 13... Kxg7 {[%clk 0:02:56.9]} 14. Ne5
{[%clk 0:02:58.6]} 14... Bxe2 {[%clk 0:02:56.1]} 15. Qxe2 {[%clk 0:02:59.6]}
15... Nf5 {[%clk 0:02:56.3]} 16. Qb5 {[%clk 0:02:50.2]} 16... Nxd4 {[%clk
0:02:23.5]} 17. Qxb7 {[%clk 0:02:48.4]} 17... Nd7 {[%clk 0:02:18.8]} 18. Qxd5
{[%clk 0:02:33.7]} 18... Nf6 {[%clk 0:02:10.1]} 19. Qxd8 {[%clk 0:02:27.6]}
19... Raxd8 {[%clk 0:02:09.6]} 20. Rad1 {[%clk 0:02:27.3]} 20... c5 {[%clk
0:02:08.6]} 21. f3 {[%clk 0:02:23.8]} 21... Rfe8 {[%clk 0:02:08.7]} 22. Kf2
{[%clk 0:02:19.6]} 22... Rf8 {[%clk 0:02:06.2]} 23. Nc4 {[%clk 0:02:18.2]} 23...
Rf7 {[%clk 0:02:03.4]} 24. h3 {[%clk 0:02:17]} 24... Rb8 {[%clk 0:02:02.4]} 25.
b3 {[%clk 0:02:17.5]} 25... Rbf8 {[%clk 0:02:00.7]} 26. Ne5 {[%clk 0:02:12.4]}
26... Re7 {[%clk 0:01:59.8]} 27. Nd3 {[%clk 0:02:13.5]} 27... Rc7 {[%clk
0:01:59.9]} 28. Nf4 {[%clk 0:02:09.2]} 28... Rd8 {[%clk 0:01:33]} 29. Ne6+
{[%clk 0:01:51.6]} 29... Nxe6 {[%clk 0:01:32.1]} 30. Rxe6 {[%clk 0:01:53.5]}
30... Rxd1 {[%clk 0:01:29.9]} 31. Nxd1 {[%clk 0:01:55.4]} 31... Kf7 {[%clk
0:01:30.7]} 32. Ra6 {[%clk 0:01:55.8]} 32... Rd7 {[%clk 0:01:31.8]} 33. Nc3
{[%clk 0:01:55.8]} 33... Rd2+ {[%clk 0:01:27.6]} 34. Ke3 {[%clk 0:01:56.8]}
34... Rxg2 {[%clk 0:01:27.4]} 35. Rxa7+ {[%clk 0:01:57.1]} 35... Ke6 {[%clk
0:01:28.5]} 36. Ra6+ {[%clk 0:01:55]} 36... Ke7 {[%clk 0:01:28.1]} 37. Rc6
{[%clk 0:01:51]} 37... Nd7 {[%clk 0:01:21.3]} 38. Nd5+ {[%clk 0:01:51.9]} 38...
Kd8 {[%clk 0:01:16.5]} 39. Rd6 {[%clk 0:01:51.1]} 39... Ke8 {[%clk 0:01:16.9]}
40. Re6+ {[%clk 0:01:43.3]} 40... Kd8 {[%clk 0:01:17.4]} 41. Ra6 {[%clk
0:01:42.1]} 41... Kc8 {[%clk 0:01:11.1]} 42. Ra7 {[%clk 0:01:34.9]} 42... Rh2
{[%clk 0:01:09.5]} 43. Nf4 {[%clk 0:01:26.9]} 43... Nf6 {[%clk 0:00:49.1]} 44.
Rf7 {[%clk 0:01:24.8]} 44... Nd7 {[%clk 0:00:43.8]} 45. Rxh7 {[%clk 0:01:20.4]}
45... g5 {[%clk 0:00:44.4]} 46. Ne6 {[%clk 0:01:17]} 46... Rxa2 {[%clk
0:00:45.6]} 47. Nxg5 {[%clk 0:01:16.1]} 47... Ra3 {[%clk 0:00:46.6]} 48. Ne4
{[%clk 0:01:12.6]} 48... Rxb3+ {[%clk 0:00:47.1]} 49. Kf4 {[%clk 0:01:14.1]}
49... Rb6 {[%clk 0:00:45.2]} 50. Rh8+ {[%clk 0:01:03.1]} 50... Kc7 {[%clk
0:00:44.9]} 51. Ra8 {[%clk 0:01:02.1]} 51... c4 {[%clk 0:00:43.1]} 52. h4 {[%clk
0:01:02.5]} 52... Rc6 {[%clk 0:00:35.1]} 53. Ra7+ {[%clk 0:01:02.7]} 53... Kd8
{[%clk 0:00:35.6]} 54. Nc3 {[%clk 0:00:34.3]} 54... Ke7 {[%clk 0:00:31.6]} 55.
h5 {[%clk 0:00:30]} 55... Ke8 {[%clk 0:00:21]} 56. Kg3 {[%clk 0:00:22.8]} 56...
Nf6 {[%clk 0:00:19.9]} 57. Ra5 {[%clk 0:00:18.3]} 57... Kf7 {[%clk 0:00:20.3]}
58. Kf4 {[%clk 0:00:18.6]} 58... Kg7 {[%clk 0:00:20.3]} 59. Kg5 {[%clk
0:00:18.6]} 59... Nh7+ {[%clk 0:00:21.6]} 60. Kg4 {[%clk 0:00:19.7]} 60... Kh6
{[%clk 0:00:22.2]} 61. f4 {[%clk 0:00:16.8]} 61... Nf6+ {[%clk 0:00:23]} 62. Kh4
{[%clk 0:00:18.3]} 62... Nh7 {[%clk 0:00:21.5]} 63. Re5 {[%clk 0:00:14.5]} 63...
Nf6 {[%clk 0:00:22.1]} 64. Rg5 {[%clk 0:00:15.4]} 64... Nh7 {[%clk 0:00:23]} 65.
Rg1 {[%clk 0:00:16]} 65... Nf6 {[%clk 0:00:23.9]} 66. Rg6+ {[%clk 0:00:16.2]}
66... Kh7 {[%clk 0:00:25.5]} 67. Nd5 {[%clk 0:00:14]} 67... Nxd5 {[%clk
0:00:23.3]} 68. Rxc6 {[%clk 0:00:15]} 68... c3 {[%clk 0:00:22.6]} 69. Kg5 {[%clk
0:00:16.4]} 1-0

[Event "*** Qualifier 2: Titled Tuesday 3|2 Blitz"]
[Site "Chess.com"]
[Date "2017.04.11"]
[Round "1"]
[White "GMMarcinDziuba"]
[Black "pedroholly22"]
[Result "1-0"]
[WhiteElo "2540"]
[BlackElo "2273"]
[TimeControl "180+2"]
[EndTime "13:11:09 PDT"]
[Termination "GMMarcinDziuba won by resignation"]

1. d4 {[%clk 0:03:00.7]} 1... Nf6 {[%clk 0:02:59.4]} 2. c4 {[%clk 0:03:01.3]}
2... e6 {[%clk 0:02:59.3]} 3. Nf3 {[%clk 0:03:00.9]} 3... Bb4+ {[%clk
0:02:55.8]} 4. Nbd2 {[%clk 0:03:01.4]} 4... O-O {[%clk 0:02:51.7]} 5. a3 {[%clk
0:03:02.5]} 5... Be7 {[%clk 0:02:50.5]} 6. e4 {[%clk 0:03:01.4]} 6... d5 {[%clk
0:02:51.5]} 7. e5 {[%clk 0:02:57.8]} 7... Nfd7 {[%clk 0:02:51.9]} 8. Bd3 {[%clk
0:02:55.2]} 8... c5 {[%clk 0:02:52.2]} 9. O-O {[%clk 0:02:55.9]} 9... Nc6 {[%clk
0:02:52.3]} 10. Qc2 {[%clk 0:02:45.2]} 10... g6 {[%clk 0:02:50.3]} 11. Re1
{[%clk 0:02:45.7]} 11... cxd4 {[%clk 0:02:49.2]} 12. cxd5 {[%clk 0:02:43.2]}
12... exd5 {[%clk 0:02:49.8]} 13. Nb3 {[%clk 0:02:44.3]} 13... Re8 {[%clk
0:02:46.7]} 14. Nbxd4 {[%clk 0:02:44.9]} 14... Nxd4 {[%clk 0:02:43.8]} 15. Nxd4
{[%clk 0:02:46.8]} 15... Bc5 {[%clk 0:02:42.8]} 16. Nf3 {[%clk 0:02:30.6]} 16...
Qb6 {[%clk 0:02:38.9]} 17. b4 {[%clk 0:02:29.7]} 17... Bf8 {[%clk 0:02:39.6]}
18. Be3 {[%clk 0:02:27.1]} 18... Qc6 {[%clk 0:02:40.5]} 19. Qb2 {[%clk
0:02:15.5]} 19... Bg7 {[%clk 0:02:29.5]} 20. Bd4 {[%clk 0:02:03.6]} 20... Nf8
{[%clk 0:02:20]} 21. Rac1 {[%clk 0:01:52.7]} 21... Qe6 {[%clk 0:02:19.1]} 22. h3
{[%clk 0:01:33.4]} 22... h6 {[%clk 0:02:16.4]} 23. Rc7 {[%clk 0:01:26.4]} 23...
Re7 {[%clk 0:02:13.7]} 24. Rc2 {[%clk 0:01:19.6]} 24... Bd7 {[%clk 0:02:12.9]}
25. Bc5 {[%clk 0:01:17.5]} 25... Ree8 {[%clk 0:02:13.7]} 26. Nd4 {[%clk
0:01:18.8]} 26... Bxe5 {[%clk 0:02:06.6]} 27. Rce2 {[%clk 0:01:10.5]} 27... Qf6
{[%clk 0:02:02.7]} 28. Bb1 {[%clk 0:01:01.6]} 28... Bd6 {[%clk 0:01:55.6]} 29.
Bxd6 {[%clk 0:00:55.6]} 29... Qxd6 {[%clk 0:01:55.8]} 30. Qd2 {[%clk 0:00:56.7]}
30... Kg7 {[%clk 0:01:53.9]} 31. Nf3 {[%clk 0:00:50.4]} 31... Rxe2 {[%clk
0:01:48.6]} 32. Rxe2 {[%clk 0:00:52.3]} 32... Ne6 {[%clk 0:01:49.2]} 33. Ne5
{[%clk 0:00:50.9]} 33... Bb5 {[%clk 0:01:49.3]} 34. Re1 {[%clk 0:00:50.6]} 34...
Rc8 {[%clk 0:01:48.3]} 35. Qb2 {[%clk 0:00:49.1]} 35... d4 {[%clk 0:01:45.1]}
36. g3 {[%clk 0:00:50.3]} 36... Ng5 {[%clk 0:01:39.1]} 37. h4 {[%clk 0:00:50.2]}
37... Ne6 {[%clk 0:01:39.7]} 38. Qd2 {[%clk 0:00:50.8]} 38... d3 {[%clk
0:01:36.6]} 39. Ng4 {[%clk 0:00:51.5]} 39... g5 {[%clk 0:01:35.3]} 40. hxg5
{[%clk 0:00:52.2]} 40... Nxg5 {[%clk 0:01:35.8]} 41. Qb2+ {[%clk 0:00:47.3]}
41... f6 {[%clk 0:01:36.2]} 42. Ne3 {[%clk 0:00:34.2]} 42... Nf3+ {[%clk
0:01:21.3]} 43. Kh1 {[%clk 0:00:35.3]} 43... Qc6 {[%clk 0:01:19.1]} 44. Rd1
{[%clk 0:00:34.8]} 44... Qe6 {[%clk 0:00:57.2]} 45. g4 {[%clk 0:00:22.9]} 45...
Bc6 {[%clk 0:00:53.8]} 46. Bxd3 {[%clk 0:00:20.4]} 46... Rd8 {[%clk 0:00:37.6]}
47. Bc2 {[%clk 0:00:21.5]} 47... Rd7 {[%clk 0:00:34.3]} 48. Kg2 {[%clk
0:00:19.9]} 48... Nd4+ {[%clk 0:00:33.4]} 49. Kf1 {[%clk 0:00:20.3]} 49... Bb5+
{[%clk 0:00:33]} 50. Kg1 {[%clk 0:00:19.6]} 50... Nf3+ {[%clk 0:00:32.1]} 51.
Kg2 {[%clk 0:00:21]} 51... Bc6 {[%clk 0:00:28.9]} 52. Kf1 {[%clk 0:00:12.1]}
52... Rxd1+ {[%clk 0:00:26.8]} 53. Bxd1 {[%clk 0:00:12.9]} 53... Ne5 {[%clk
0:00:27.3]} 54. Nf5+ {[%clk 0:00:13.3]} 54... Kg6 {[%clk 0:00:27.8]} 55. Qd2
{[%clk 0:00:14.3]} 55... Nxg4 {[%clk 0:00:26.9]} 56. Bxg4 {[%clk 0:00:13.3]}
56... Qc4+ {[%clk 0:00:27.3]} 57. Be2 {[%clk 0:00:12.3]} 57... Qd5 {[%clk
0:00:26]} 58. Qxd5 {[%clk 0:00:12.7]} 58... Bxd5 {[%clk 0:00:26.6]} 59. Ne7+
{[%clk 0:00:14.3]} 59... Kf7 {[%clk 0:00:26.8]} 60. Nxd5 {[%clk 0:00:16.2]}
60... Ke6 {[%clk 0:00:28.7]} 61. Nf4+ {[%clk 0:00:17.8]} 61... Ke5 {[%clk
0:00:29]} 62. Nd3+ {[%clk 0:00:19.7]} 62... Kd4 {[%clk 0:00:30]} 63. Kg2 {[%clk
0:00:20.2]} 63... Kc3 {[%clk 0:00:30.7]} 64. Kf3 {[%clk 0:00:21.5]} 64... Kb3
{[%clk 0:00:31.8]} 65. Kf4 {[%clk 0:00:20.5]} 65... Kxa3 {[%clk 0:00:32.4]} 66.
Kf5 {[%clk 0:00:22]} 66... b6 {[%clk 0:00:30.3]} 67. Kxf6 {[%clk 0:00:23.4]}
67... a5 {[%clk 0:00:32.2]} 68. bxa5 {[%clk 0:00:24.9]} 68... bxa5 {[%clk
0:00:34.1]} 69. Ke5 {[%clk 0:00:25.6]} 69... Kb3 {[%clk 0:00:35.1]} 70. f4
{[%clk 0:00:25.9]} 70... Kc3 {[%clk 0:00:35.3]} 71. Nc5 {[%clk 0:00:26.7]} 71...
Kb4 {[%clk 0:00:33.9]} 72. Na6+ {[%clk 0:00:27.8]} 72... Kc3 {[%clk 0:00:32.7]}
73. Nc5 {[%clk 0:00:28.6]} 73... Kb4 {[%clk 0:00:33.2]} 74. Kd5 {[%clk 0:00:30]}
1-0